{"text_format":"3","workbook":"xlsx","n_sheets":2,"sheets":["Mokytojo sąrašas"," Sąrašo duomenys"],"not_rendered":{"defined_names":6},"read":"whole","date_system":"1900"}

{"sheet":"Mokytojo sąrašas","index":0,"n_rows":10,"n_cols":10,"rows_kept":10,"merged":[[0,1,0,2],[0,4,0,8],[2,9,6,9]]}
[null,"   Mokytojo sąrašas",null,"Sąrašo duomenys","Šiame langelyje yra lauko Būsena spalvų legenda: „Nepradėta“ yra įprasto stiliaus, „Vykdoma“ yra R = 91, G = 133, B = 49, „Terminas šiandien“ yra R = 118, G = 88, B = 0, „Atidėta“ yra R = 109, G = 66, B = 111, „Atlikta“ yra perbraukimas, „Atšaukta“ yra R = 191, G = 191, B = 191, „Pradelsta“ yra R = 191, G = 33, B = 28."]
[null,"ELEMENTAS","KATEGORIJA","PRADŽIOS DATA","TERMINAS","LIKO DIENŲ","BŪSENA","PASTABOS"]
[null,"Išvalyti stalčius","Kabinetas",{"$f":"DATE(YEAR(TODAY()),MONTH(TODAY())-1,6)","v":"2018-04-06"},{"$f":"DATE(YEAR(TODAY()),MONTH(TODAY())-1,16)","v":"2018-04-16"},{"$f":"IFERROR(IF(COUNT(Sąrašas[[#This Row],[PRADŽIOS DATA]]:Sąrašas[[#This Row],[TERMINAS]])<>2,\"\",IF(OR(Sąrašas[[#This Row],[BŪSENA]]=\"Atlikta\",Sąrašas[[#This Row],[BŪSENA]]=\"Atšaukta\",Sąrašas[[#This Row],[BŪSENA]]=\"Atidėta\"),\"\",Sąrašas[[#This Row],[TERMINAS]]-TODAY())),\"\")","v":""},"Atlikta",null,null,"Šiame langelyje yra būsenos duomenų filtras. Norėdami filtruoti pagal būseną, pasirinkite būseną duomenų filtre. Jei norite pasirinkti kelias parinktis, paspauskite ir laikykite CTRL."]
[null,"Užsakyti lipdukus","Priemonės",{"$f":"DATE(YEAR(TODAY()),MONTH(TODAY())-1,11)","v":"2018-04-11"},{"$f":"DATE(YEAR(TODAY()),MONTH(TODAY())-1,21)","v":"2018-04-21"},{"$f":"IFERROR(IF(COUNT(Sąrašas[[#This Row],[PRADŽIOS DATA]]:Sąrašas[[#This Row],[TERMINAS]])<>2,\"\",IF(OR(Sąrašas[[#This Row],[BŪSENA]]=\"Atlikta\",Sąrašas[[#This Row],[BŪSENA]]=\"Atšaukta\",Sąrašas[[#This Row],[BŪSENA]]=\"Atidėta\"),\"\",Sąrašas[[#This Row],[TERMINAS]]-TODAY())),\"\")","v":""},"Atlikta"]
[null,"Grindys išplautos ir išvaškuotos","Kita",{"$f":"DATE(YEAR(TODAY()),MONTH(TODAY()-1),DAY(TODAY())-25)","v":"2018-04-16"},{"$f":"DATE(YEAR(TODAY()),MONTH(TODAY())-1,26)","v":"2018-04-26"},{"$f":"IFERROR(IF(COUNT(Sąrašas[[#This Row],[PRADŽIOS DATA]]:Sąrašas[[#This Row],[TERMINAS]])<>2,\"\",IF(OR(Sąrašas[[#This Row],[BŪSENA]]=\"Atlikta\",Sąrašas[[#This Row],[BŪSENA]]=\"Atšaukta\",Sąrašas[[#This Row],[BŪSENA]]=\"Atidėta\"),\"\",Sąrašas[[#This Row],[TERMINAS]]-TODAY())),\"\")","v":""},"Atlikta"]
[null,"Vardų kortelės sukurtos","Priemonės",{"$f":"DATE(YEAR(TODAY()),MONTH(TODAY())-1,21)","v":"2018-04-21"},{"$f":"DATE(YEAR(TODAY()),MONTH(TODAY())-1,1)","v":"2018-04-01"},{"$f":"IFERROR(IF(COUNT(Sąrašas[[#This Row],[PRADŽIOS DATA]]:Sąrašas[[#This Row],[TERMINAS]])<>2,\"\",IF(OR(Sąrašas[[#This Row],[BŪSENA]]=\"Atlikta\",Sąrašas[[#This Row],[BŪSENA]]=\"Atšaukta\",Sąrašas[[#This Row],[BŪSENA]]=\"Atidėta\"),\"\",Sąrašas[[#This Row],[TERMINAS]]-TODAY())),\"\")","v":""},"Atidėta"]
[null,"Įvertinti ketvirčio atsiskaitymus raštu","Vertinimai",{"$f":"DATE(YEAR(TODAY()),MONTH(TODAY())-1,26)","v":"2018-04-26"},{"$f":"TODAY()-5","v":"2018-05-06"},{"$f":"IFERROR(IF(COUNT(Sąrašas[[#This Row],[PRADŽIOS DATA]]:Sąrašas[[#This Row],[TERMINAS]])<>2,\"\",IF(OR(Sąrašas[[#This Row],[BŪSENA]]=\"Atlikta\",Sąrašas[[#This Row],[BŪSENA]]=\"Atšaukta\",Sąrašas[[#This Row],[BŪSENA]]=\"Atidėta\"),\"\",Sąrašas[[#This Row],[TERMINAS]]-TODAY())),\"\")","v":-5},"Pradelsta"]
[null,"Priminimo el. laiškas apie leidimus","Telefono skambučiai",{"$f":"DATE(YEAR(TODAY()),MONTH(TODAY()),1)","v":"2018-05-01"},{"$f":"TODAY()","v":"2018-05-11"},{"$f":"IFERROR(IF(COUNT(Sąrašas[[#This Row],[PRADŽIOS DATA]]:Sąrašas[[#This Row],[TERMINAS]])<>2,\"\",IF(OR(Sąrašas[[#This Row],[BŪSENA]]=\"Atlikta\",Sąrašas[[#This Row],[BŪSENA]]=\"Atšaukta\",Sąrašas[[#This Row],[BŪSENA]]=\"Atidėta\"),\"\",Sąrašas[[#This Row],[TERMINAS]]-TODAY())),\"\")","v":""},"Atšaukta"]
[null,"Įvertinti atsiskaitymus žodžiu","Kabinetas",{"$f":"DATE(YEAR(TODAY()),MONTH(TODAY()),7)","v":"2018-05-07"},{"$f":"DATE(YEAR(TODAY()),MONTH(TODAY()),17)","v":"2018-05-17"},{"$f":"IFERROR(IF(COUNT(Sąrašas[[#This Row],[PRADŽIOS DATA]]:Sąrašas[[#This Row],[TERMINAS]])<>2,\"\",IF(OR(Sąrašas[[#This Row],[BŪSENA]]=\"Atlikta\",Sąrašas[[#This Row],[BŪSENA]]=\"Atšaukta\",Sąrašas[[#This Row],[BŪSENA]]=\"Atidėta\"),\"\",Sąrašas[[#This Row],[TERMINAS]]-TODAY())),\"\")","v":6},"Vykdoma"]
[null,"Padrožti pieštukus","Priemonės",{"$f":"DATE(YEAR(TODAY()),MONTH(TODAY()),11)","v":"2018-05-11"},{"$f":"DATE(YEAR(TODAY()),MONTH(TODAY()),10)","v":"2018-05-10"},{"$f":"IFERROR(IF(COUNT(Sąrašas[[#This Row],[PRADŽIOS DATA]]:Sąrašas[[#This Row],[TERMINAS]])<>2,\"\",IF(OR(Sąrašas[[#This Row],[BŪSENA]]=\"Atlikta\",Sąrašas[[#This Row],[BŪSENA]]=\"Atšaukta\",Sąrašas[[#This Row],[BŪSENA]]=\"Atidėta\"),\"\",Sąrašas[[#This Row],[TERMINAS]]-TODAY())),\"\")","v":-1},"Vykdoma"]

{"sheet":" Sąrašo duomenys","index":1,"n_rows":13,"n_cols":3,"rows_kept":13}
[null,"   Sąrašo duomenys","Mokytojo sąrašas"]
[null,"Kategorija"]
[null,"Kabinetas"]
[null,"Priemonės"]
[null,"Dalykai, kuriuos reikia įsigyti"]
[null,"Telefono skambučiai"]
[null,"Naujos idėjos"]
[null,"Vertinimai"]
[null,"Komanda"]
[null,"Būtini veiksmai"]
[null,"Kompiuteris"]
[null,"Asmeniniai"]
[null,"Kita"]